fUSD/lending_fUSD_20251019
["ID","MTS","AMOUNT","RATE_DAILY","PERIOD"]
[391825189,1760890233676,-500.0,0.000287,5]
[391825190,1760890233685,-500.0,0.000287,5]
[391825191,1760890233701,-500.0,0.000287,5]
[391825192,1760890233710,-500.0,0.000287,5]
[391825193,1760890233720,-500.0,0.000287,5]
[391825194,1760890233729,-500.0,0.000287,5]
[391825195,1760890233739,-11084.63535016,0.00028736,2]
[391825196,1760890233751,-32717.34882184,0.00028736,2]
[391825197,1760890233768,-6257.42631028,0.00028745,2]
[391825198,1760890233777,-7805.23931975,0.00028745,2]
[391825199,1760890233786,-6257.42631028,0.00028746,2]
[391825200,1760890233795,-200.0,0.0002875,2]
[391825201,1760890233804,-200.0,0.0002875,2]
[391825202,1760890233814,-500.0,0.0002875,2]
[391825203,1760890233823,-150.0,0.0002875,2]
[391825204,1760890233832,-150.0,0.0002875,2]
[391825205,1760890233842,-890.08130565,0.00028752,2]
[391825206,1760890233851,-500.0,0.00028755,8]
[391825207,1760890233860,-500.0,0.00028755,8]
[391825208,1760890233870,-500.0,0.00028755,8]
[391825209,1760890233879,-500.0,0.00028755,8]
[391825210,1760890233889,-500.0,0.00028755,7]
[391825211,1760890233899,-500.0,0.00028755,8]
[391825212,1760890233908,-500.0,0.00028755,2]
[391825213,1760890233917,-500.0,0.00028755,8]
[391825214,1760890233927,-500.0,0.00028755,8]
[391825215,1760890233936,-500.0,0.00028755,8]
[391825216,1760890233945,-500.0,0.00028755,8]
[391825217,1760890233955,-1296.05,0.00028755,8]
[391825218,1760890233964,-500.0,0.00028755,8]
[391825219,1760890233973,-500.0,0.00028755,8]
[391825220,1760890233982,-150.0,0.00028756,2]
[391825221,1760890233992,-150.0,0.00028756,2]
[391825222,1760890234002,-150.0,0.00028756,2]
[391825223,1760890234011,-203.89445552,0.00028756,2]
[391825224,1760890234021,-150.0,0.00028756,2]
[391825225,1760890234031,-200.0,0.00028756,2]
[391825226,1760890234041,-200.0,0.00028756,2]
[391825227,1760890234051,-6257.42631028,0.00028756,2]
[391825228,1760890234060,-7805.23931975,0.00028756,2]
[391825229,1760890234069,-4458.42586503,0.00028763,2]
[391825230,1760890234081,-2911.37037397,0.00028763,2]
[391825231,1760890234091,-500.0,0.00028765,8]
[391825232,1760890234101,-500.0,0.00028765,8]
[391825233,1760890234111,-500.0,0.00028766,8]
[391825234,1760890234120,-500.0,0.00028766,8]
[391825235,1760890234131,-500.0,0.00028766,8]
[391825236,1760890234141,-500.0,0.00028766,8]
[391825237,1760890234151,-500.0,0.00028766,8]
[391825238,1760890234160,-500.0,0.00028766,8]
[391825239,1760890234169,-280.86641714,0.00028766,8]
[391825240,1760890234178,-155.93518932,0.00028767,2]
[391825241,1760890234188,-502.12182385,0.00028773,5]
[391825242,1760890234197,-500.0,0.00028773,5]
[391825243,1760890234207,-500.0,0.00028773,2]
[391825244,1760890234216,-500.0,0.00028773,5]
[391825245,1760890234225,-479.26697898,0.00028773,5]
[391825246,1760890234235,-500.0,0.00028773,5]
[391825247,1760890234244,-500.0,0.00028773,2]
[391825248,1760890234253,-500.0,0.00028773,5]
[391825249,1760890234263,-500.0,0.00028773,5]
[391825250,1760890234277,-502.28864495,0.00028773,5]
[391825251,1760890234286,-1061.13,0.00028792,7]
[391825252,1760890234296,-505.01175065,0.00028801,2]
[391825253,1760890234305,-500.0,0.00028805,2]
[391825254,1760890234316,-200.0,0.00028805,2]
[391825255,1760890234326,-200.0,0.00028805,2]
[391825256,1760890234335,-200.0,0.00028811,2]
[391825257,1760890234347,-200.0,0.00028811,2]
[391825258,1760890234357,-500.0,0.0002886,2]
[391825259,1760890234366,-500.0,0.00028914,2]
[391825260,1760890234376,-500.0,0.00028969,2]
[391825261,1760890234387,-6257.42631028,0.00028975,2]
[391825262,1760890234396,-500.0,0.00029024,2]
[391825263,1760890234405,-3230.3538139,0.00029046,2]
[391825264,1760890234415,-342.12280135,0.00029049,2]
[391825265,1760890234424,-1061.13,0.00029066,7]
[391825266,1760890234433,-500.0,0.00029079,2]
[391825267,1760890234443,-350.0,0.00029134,2]
[391825268,1760890234452,-7242.48336531,0.00029228,2]
[391825269,1760890234475,-562.75595444,0.00029228,2]
[391825270,1760890234484,-203.44628736,0.00029229,2]
[391825271,1760890234493,-2491.45394454,0.00029238,2]
[391825272,1760890234504,-716.03838195,0.00029238,2]
[391825273,1760890234515,-301.73942969,0.00029238,2]
[391825277,1760890238322,-200.0,0.0002875,2]
[391825278,1760890238332,-1726.42997833,0.00029238,2]
[391825279,1760890238394,-1021.76457577,0.00029238,2]
[391825280,1760890238404,-423.82310137,0.00029248,5]
[391825281,1760890238454,-14.4569086,0.00029248,5]
[391825282,1760890238464,-501.97573983,0.00029248,5]
[391825283,1760890238473,-500.65389565,0.00029248,5]
[391825284,1760890238482,-123.41345592,0.00029248,5]
[391825287,1760890240555,-500.0,0.00028518,8]
[391825288,1760890240565,-45.0331317,0.00029248,5]
[391825289,1760890240578,-471.61085,0.00029248,5]
[391825300,1760890241062,-1.6e-07,0.00029248,5]
[391825301,1760890241074,-359.94256222,0.00029248,5]
[391825302,1760890241083,-1005.46793221,0.00029248,5]
[391825303,1760890241092,-1000.0,0.00029321,5]
[391825304,1760890241102,-1000.0,0.00029321,2]
[391825305,1760890241111,-1000.0,0.00029321,2]
[391825306,1760890241120,-1061.13,0.0002934,7]
[391825307,1760890241130,-182.56,0.00029584,2]
[391825308,1760890241139,-1061.13,0.00029614,7]
[391825309,1760890241149,-3069.48099271,0.00029676,2]
[391825318,1760890253966,1000.0,0.00028757,120]
[391825406,1760890261565,200.0,0.00034154,120]
[391825536,1760890262868,1687.24811824,0.00025442,120]
[391825973,1760890285456,865695.18920646,0.00034154,120]
[391825974,1760890328606,416.46283289,0.00034154,30]
[391825975,1760890333434,151.0,0.00034154,30]
[391825976,1760890334024,151.0,0.00034154,30]
[391825978,1760890363043,214.6,0.00034154,30]
[391825987,1760890562577,200.0,0.00034159,120]
[391825992,1760890624782,300.0,0.00034159,30]
[391825993,1760890624821,520.0,0.00034159,30]
[391825994,1760890625382,311.1,0.00034159,30]
[391825995,1760890625454,539.24,0.00034159,30]
[391825996,1760890625996,311.1,0.00034159,30]
[391825997,1760890657740,151.0,0.00034159,120]
[391826003,1760890715788,151.0,0.00034159,30]
[391826007,1760890809569,-475.82771539,0.0002313,2]
[391826008,1760890809600,-605.012269,0.00025461,2]
[391826009,1760890809635,-152.05545225,0.00027642,2]
[391826010,1760890809666,-173.55298039,0.0002832,2]
[391826011,1760890809689,-475.82771539,0.0002833,2]
[391826012,1760890809702,-605.012269,0.0002833,2]
[391826013,1760890809713,-152.05545225,0.0002833,2]
[391826014,1760890809724,-173.55298039,0.0002833,2]
[391826015,1760890809736,-2670.13353296,0.0002833,2]
[391826016,1760890809745,-216.96963298,0.00028516,2]
[391826017,1760890835338,-243.5616183,0.000232,2]
[391826018,1760890835376,-29.84639638,0.00028516,2]
[391826019,1760890835393,-53.18397064,0.00028516,2]
[391826020,1760890835403,-190.37764766,0.00028516,2]
[391826021,1760890835415,-83.03036702,0.00028516,2]
[391826024,1760890861686,200.0,0.00034165,120]
[391826028,1760890928631,409.69703395,0.00034165,30]
[391826029,1760890938863,157.5603142,0.00034165,30]
[391826030,1760890963200,150.0,0.00034165,30]
[391826046,1760891108766,759.42850112,0.00034165,90]
[391826047,1760891112993,259.15941032,0.00034165,30]
[391826048,1760891123443,153.66155147,0.00034165,120]
[391826049,1760891128647,247.27098947,0.00034165,30]
[391826050,1760891144676,646.32378881,0.00034165,120]
[391826053,1760891161941,200.0,0.00034165,120]
[391826055,1760891163896,457.77679506,0.00034165,30]
[391826056,1760891241590,-151.9646331,0.00014999,2]
[391826059,1760891244483,-166.70255021,0.00014999,2]
[391826060,1760891246972,-181.33281669,0.00014999,2]
[391826061,1760891247021,-55.03216536,0.00014999,2]
[391826062,1760891276085,175.83160613,0.00034165,120]
[391826063,1760891308003,150.33107028,0.00034165,30]
[391826064,1760891311016,1600.58803383,0.00034165,30]
[391826065,1760891311704,157.64749241,0.00034165,30]
[391826066,1760891315784,253.02524396,0.00034165,120]
[391826067,1760891316679,265.4135014,0.000107,2]
[391826071,1760891322772,217.37087982,0.00034165,30]
[391826072,1760891323224,498.23782538,0.00034165,30]
[391826075,1760891323519,467.5147407,0.00034165,30]
[391826078,1760891324331,523.21127148,0.00034165,60]
[391826080,1760891325289,428.59495296,0.00034165,30]
[391826092,1760891419598,-927.0,0.00014998,2]
[391826093,1760891419621,-150.0,0.00014998,2]
[391826094,1760891419648,-444.96783464,0.00014999,2]
[391826095,1760891419675,-500.0,0.00014999,2]
[391826096,1760891419700,-500.0,0.00014999,2]
[391826097,1760891419727,-500.0,0.00014999,2]
[391826098,1760891419751,-500.0,0.00014999,2]
[391826099,1760891419780,-390.88303726,0.00014999,2]
[391826100,1760891419805,-500.0,0.00014999,2]
[391826101,1760891419828,-500.0,0.00014999,2]
[391826102,1760891419853,-500.0,0.00014999,2]
[391826103,1760891419877,-500.0,0.00014999,2]
[391826104,1760891419903,-500.0,0.00014999,2]
[391826105,1760891419927,-500.0,0.00014999,2]
[391826106,1760891419951,-500.0,0.00014999,2]
[391826107,1760891419975,-500.0,0.00014999,2]
[391826108,1760891419997,-500.0,0.00014999,2]
[391826109,1760891420021,-500.0,0.00014999,2]
[391826110,1760891420046,-500.0,0.00014999,2]
[391826111,1760891420071,-500.0,0.00014999,2]
[391826112,1760891420096,-243.04072738,0.00014999,2]
[391826113,1760891420118,-440.72806355,0.00014999,2]
[391826114,1760891420140,-500.0,0.00014999,2]
[391826115,1760891420165,-255.8699398,0.00014999,2]
[391826116,1760891420190,-500.0,0.00014999,2]
[391826117,1760891420213,-573.67034133,0.00014999,2]
[391826118,1760891420237,-431.00455234,0.00014999,2]
[391826119,1760891420258,-500.0,0.00014999,2]
[391826120,1760891420282,-16642.8355037,0.00015,2]
[391826123,1760891431449,-119489.97817995,0.00015,2]
[391826125,1760891431461,-19677.04675176,0.00015,2]
[391826128,1760891431472,-31239.85565095,0.00015,2]
[391826130,1760891431504,-1013.65353583,0.00015,2]
[391826131,1760891431515,-3879.92119994,0.00015,2]
[391826132,1760891431560,-589.5,0.00015,2]
[391826133,1760891431572,-560.63799615,0.00015,2]
[391826134,1760891431583,-814.08895935,0.00015,2]
[391826135,1760891431594,-1559.39668793,0.00015,2]
[391826136,1760891431620,-7475.1791545,0.00015,2]
[391826137,1760891431631,-619.35433313,0.00015,2]
[391826138,1760891431643,-584.99999962,0.00015,2]
[391826139,1760891431678,-1830.42110456,0.00015,2]
[391826439,1760891437400,-16110.58822604,0.00015,2]
[391826440,1760891437412,-5551.0,0.00015,2]
[391826441,1760891437423,-4814.1946279,0.00015,2]
[391826442,1760891437460,-865.15710188,0.00015,2]
[391826443,1760891437472,-478.485,0.00015,2]
[391826444,1760891437562,-851.1814562,0.00015,2]
[391826445,1760891437617,-9559.89748385,0.00015,2]
[391826446,1760891437626,-2590.73143142,0.000162,5]
[391826491,1760891439466,-1075.0,0.000162,5]
[391826492,1760891439481,-1334.27347991,0.000162,5]
[391826493,1760891439491,-2276.51096627,0.000199,3]
[391826494,1760891439522,-756.2,0.000199,3]
[391826495,1760891439533,-1829.68209425,0.000199,3]
[391826496,1760891439542,-678.10339744,0.0002,5]
[391826497,1760891439551,-15.51450915,0.000231,2]
[391826498,1760891439563,-2760.58463262,0.000231,2]
[391826499,1760891439572,-170.36888867,0.000232,2]
[391826500,1760891439582,-243.5616183,0.000235,2]
[391826501,1760891439590,-243.5616183,0.000237,2]
[391826502,1760891439600,-243.5616183,0.00024,2]
[391826503,1760891439609,-243.5616183,0.000242,2]
[391826504,1760891439618,-2423.70010203,0.00024321,2]
[391826505,1760891439629,-352.39903969,0.00024321,2]
[391826506,1760891439638,-308.50964448,0.00025541,2]
[391826507,1760891439647,-301.70318664,0.00025541,2]
[391826508,1760891439657,-500.0,0.00025541,2]
[391826509,1760891439667,-179.10895786,0.00025541,2]
[391826510,1760891439676,-601.56923893,0.00025541,2]
[391826511,1760891439687,-521.50993229,0.00025542,2]
[391826512,1760891439699,-2254.58920943,0.00025542,2]
[391826513,1760891439708,-2727.03079056,0.00026762,2]
[391826514,1760891439719,-49.06835116,0.00026762,2]
[391826515,1760891439728,-315.67759384,0.00027983,2]
[391826516,1760891439739,-2460.42154788,0.00027983,2]
[391826517,1760891439749,-4619.849466,0.00028,60]
[391826518,1760891439758,-1113.12,0.00028518,7]
[391826519,1760891439767,-1000.0,0.0002867,30]
[391826520,1760891439777,-663.524,0.0002867,90]
[391826521,1760891439786,-2116.3186178,0.00028763,2]
[391826522,1760891439796,-1450.47950365,0.00028785,2]
[391826523,1760891439805,-605.05702484,0.00028792,7]
[391826524,1760891439825,-398.82975221,0.00028792,7]
[391826525,1760891439836,-109.23322295,0.00028792,7]
[391826526,1760891439845,-481.46762124,0.00028868,2]
[391826527,1760891439855,-268.57922976,0.00028868,2]
[391826528,1760891439867,-1100.478949,0.00028868,2]
[391826529,1760891439876,-1589.92541473,0.00028868,2]
[391826530,1760891439886,-211.05526506,0.00028868,2]
[391826531,1760891439895,-2095.6079793,0.00028958,3]
[391826532,1760891439906,-15214.6285077,0.00028958,3]
[391826533,1760891439934,-7054.99908943,0.00028958,3]
[391826534,1760891439946,-356.94946407,0.00028958,3]
[391826535,1760891439955,-4867.73906039,0.00028968,2]
[391826537,1760891439966,-517.42760014,0.00028968,2]
[391826539,1760891439978,-952.54999975,0.00028968,2]
[391826562,1760891442450,-631.89036925,0.00028968,2]
[391826564,1760891442517,-254.62165636,0.00028968,2]
[391826565,1760891442612,-695.57677607,0.00028968,2]
[391826566,1760891442626,-2159.188065,0.00028968,2]
[391826567,1760891442637,-1271.18257568,0.00028968,2]
[391826568,1760891442649,-323.61826261,0.00028968,2]
[391826569,1760891442660,-1917.76,0.00028968,2]
[391826570,1760891442691,-550.05300345,0.00028968,2]
[391826582,1760891445488,-742.74609104,0.00028968,2]
[391826584,1760891445500,-1203.954994,0.00028968,2]
[391826586,1760891445511,-3077.2101112,0.00028968,2]
[391826588,1760891445523,-444.80784,0.00028968,2]
[391826591,1760891445545,-280.83350566,0.00028968,2]
[391826594,1760891445557,-370.21485913,0.00028968,2]
[391826596,1760891445568,-19832.73828853,0.00028968,2]
[391826601,1760891445603,-531.1499993,0.00028968,2]
[391826617,1760891458370,500.0,0.00014999,2]
[391826618,1760891462397,200.0,0.00034165,120]
[391826619,1760891480517,316.31307033,0.00014999,2]
[391826620,1760891480556,500.0,0.00014999,2]
[391826621,1760891480624,500.0,0.00014999,2]
[391826622,1760891480663,486.55154554,0.00014999,2]
[391826624,1760891507102,1453.85,0.00014999,2]
[391826631,1760891529677,500.0,0.00014999,2]
[391826632,1760891532892,324.30477845,0.00034165,30]
[391826633,1760891542693,50000.0,0.00034165,33]
[391826637,1760891565859,214.6,0.00034165,30]
[391826638,1760891577695,50000.0,0.00034165,34]
[391826639,1760891586343,500.0,0.00014999,2]
[391826640,1760891598762,500.0,0.00014999,2]
[391826641,1760891607933,556.53,0.00014999,2]
[391826642,1760891617311,50000.0,0.00034165,35]
[391826643,1760891623026,500.0,0.00014999,2]
[391826644,1760891626996,500.0,0.00014999,2]
[391826647,1760891657252,500.0,0.00014999,2]
[391826648,1760891692861,500.0,0.00014999,2]
[391826654,1760891709285,500.0,0.00014999,2]
[391826660,1760891732645,50000.0,0.00034165,36]
[391826661,1760891737343,1393.27,0.00014999,2]
[391826662,1760891745851,50000.0,0.00034165,37]
[391826663,1760891760040,293.48538413,0.00014999,2]
[391826664,1760891762791,200.0,0.00034165,120]
[391826667,1760891782505,-153.93,0.00013699,2]
[391826672,1760891886567,-37.85,0.00013699,2]
[391826673,1760891886590,-250.62429644,0.00014024,2]
[391826674,1760891888695,-158.38295035,0.00014024,2]
[391826675,1760891891393,157.85447976,0.00034164,30]
[391826676,1760891892972,-250.29,0.00014024,2]
[391826677,1760891894560,-410.09913291,0.00014024,2]
[391826678,1760891897145,-219.67503196,0.00014024,2]
[391826679,1760891899744,-188.02723125,0.00014024,2]
[391826680,1760891901201,1562.88840851,0.00034164,120]
[391826681,1760891904757,-236.65678087,0.00014024,2]
[391826682,1760891906157,-250.0,0.00014024,2]
[391826683,1760891907639,-280.72375127,0.00014024,2]
[391826684,1760891910812,-187.27479899,0.00014024,2]
[391826688,1760891985645,151.0,0.00034164,30]
[391826691,1760892062019,200.0,0.00034164,120]
[391826697,1760892162621,193.4,0.00034164,30]
[391826705,1760892361324,200.0,0.00034164,120]
[391826710,1760892448426,-195.0,0.00014433,2]
[391826711,1760892448451,-2500.0,0.00014597,2]
[391826712,1760892448475,-195.0,0.00014761,2]
[391826713,1760892448499,-880.99790772,0.00014806,2]
[391826714,1760892448522,-151.0,0.0001499,2]
[391826715,1760892448545,-151.0,0.0001499,2]
[391826716,1760892448568,-151.0,0.0001499,2]
[391826717,1760892448592,-151.0,0.0001499,2]
[391826718,1760892448617,-151.0,0.0001499,2]
[391826719,1760892448641,-151.0,0.0001499,2]
[391826720,1760892448664,-151.0,0.0001499,2]
[391826721,1760892448688,-151.0,0.0001499,2]
[391826722,1760892448712,-286.56340228,0.0001499,2]
[391826723,1760892448734,-151.0,0.0001499,2]
[391826724,1760892448756,-151.0,0.0001499,2]
[391826725,1760892448778,-151.0,0.0001499,2]
[391826726,1760892448800,-151.0,0.0001499,2]
[391826727,1760892448821,-151.0,0.0001499,2]
[391826728,1760892448843,-151.0,0.0001499,2]
[391826729,1760892448866,-151.0,0.0001499,2]
[391826730,1760892448890,-151.0,0.0001499,2]
[391826731,1760892448915,-151.0,0.0001499,2]
[391826732,1760892448937,-151.0,0.0001499,2]
[391826733,1760892448960,-151.0,0.0001499,2]
[391826734,1760892448987,-151.0,0.0001499,2]
[391826735,1760892449009,-151.0,0.0001499,2]
[391826736,1760892449032,-151.0,0.0001499,2]
[391826737,1760892449055,-151.0,0.0001499,2]
[391826738,1760892449076,-151.0,0.0001499,2]
[391826739,1760892449099,-197.15620594,0.0001499,2]
[391826740,1760892449124,-300.0,0.00014996,2]
[391826741,1760892449150,-1200.0,0.00014997,2]
[391826742,1760892449172,-209.0,0.00014997,2]
[391826743,1760892449194,-412.28248406,0.00014997,2]
[391826744,1760892470107,-202.08027241,0.00014661,2]
[391826745,1760892470132,-787.71751594,0.00014997,2]
[391826746,1760892470160,-300.0,0.00014997,2]
[391826747,1760892470183,-300.0,0.00014998,2]
[391826748,1760892470206,-258.0,0.00014998,2]
[391826749,1760892470230,-500.0,0.00014999,2]
[391826750,1760892470254,-500.0,0.00014999,2]
[391826751,1760892470277,-500.0,0.00014999,2]
[391826752,1760892470301,-500.0,0.00014999,2]
[391826753,1760892470324,-500.0,0.00014999,2]
[391826754,1760892470349,-503.6743994,0.00015,2]
[391826755,1760892470376,-500.0,0.00015,2]
[391826756,1760892470401,-385.52781225,0.00015,2]
[391826757,1760892484522,-114.47218775,0.00015,2]
[391826758,1760892484546,-185.52781225,0.00015,2]
[391826759,1760892493296,-314.47218775,0.00015,2]
[391826760,1760892493324,-399.25149774,0.00015,2]
[391826761,1760892493348,-286.27631451,0.00015,2]
[391826766,1760892577137,1000.0,0.00034164,60]
[391826768,1760892593796,151.0,0.00034164,30]
[391826796,1760892631627,-159.17,0.0001343,2]
[391826798,1760892631636,-300.0,0.00014773,2]
[391826799,1760892631646,-465.93525915,0.00015213,2]
[391826801,1760892631657,-713.83442561,0.00015213,2]
[391826803,1760892631668,-1182.67376955,0.00015213,2]
[391826805,1760892631679,-137.55654569,0.00015213,2]
[391826807,1760892631688,-273.0,0.00015876,2]
[391826809,1760892631697,-1111.56055523,0.00015877,2]
[391826811,1760892631708,-1388.43944477,0.00015877,2]
[391826812,1760892631718,-159.17,0.00016116,2]
[391826813,1760892631727,-270.0,0.00016499,2]
[391826814,1760892631736,-300.0,0.00016499,2]
[391826815,1760892631746,-2500.0,0.000165,2]
[391826816,1760892631755,-300.0,0.000165,2]
[391826817,1760892631765,-250.0,0.00017,2]
[391826818,1760892631777,-300.0,0.0001803,2]
[391826819,1760892631787,-159.17,0.00018802,2]
[391826820,1760892631796,-3301.81582679,0.00019077,2]
[391826821,1760892631807,-191.78,0.00020187,2]
[391826822,1760892631816,-159.17,0.00021488,2]
[391826823,1760892631825,-156.99,0.00021966,2]
[391826824,1760892631835,-159.17,0.00024174,2]
[391826825,1760892631844,-280.00283772,0.0002443,2]
[391826826,1760892631855,-48.72849228,0.0002443,2]
[391826827,1760892631865,-328.73134,0.0002443,2]
[391826828,1760892631874,-228.25276343,0.0002443,2]
[391826829,1760892631885,-100.47857657,0.0002443,2]
[391826830,1760892631895,-328.73134,0.0002443,2]
[391826831,1760892631906,-328.73133,0.0002443,2]
[391826832,1760892631915,-328.73134,0.0002443,2]
[391826833,1760892631925,-717.93734157,0.00026282,2]
[391826834,1760892631935,-1311.00150724,0.00026354,2]
[391826835,1760892631948,-1508.67617989,0.00026354,2]
[391826837,1760892631959,-82.58231287,0.00026354,2]
[391826864,1760892632117,-264.41,0.00026427,30]
[391826866,1760892632127,-191.78,0.00026676,2]
[391826868,1760892632136,-71.06217669,0.0002686,2]
[391826870,1760892632147,-88.10782331,0.0002686,2]
[391826872,1760892632156,-993.26,0.00026891,2]
[391826874,1760892632166,-164.0,0.00027,7]
[391826876,1760892632176,-311.05,0.00027025,2]
[391826878,1760892632185,-247.38798193,0.00027315,2]
[391826880,1760892632195,-500.0,0.000275,5]
[391826882,1760892632204,-500.0,0.000275,5]
[391826884,1760892632214,-500.0,0.000275,2]
[391826886,1760892632223,-500.92854061,0.0002765,5]
[391826888,1760892632232,-501.05788927,0.0002765,5]
[391826890,1760892632241,-476.87708629,0.0002765,5]
[391826892,1760892632251,-500.0,0.0002765,5]
[391826894,1760892632260,-500.0,0.0002765,5]
[391826896,1760892632269,-3138.324,0.00028015,18]
[391826898,1760892632278,-180.4,0.00028015,18]
[391826900,1760892632287,-500.0,0.00028048,5]
[391826902,1760892632297,-213.72368549,0.00028048,2]
[391826904,1760892632306,-1570.32857792,0.00028077,2]
[391826906,1760892632316,-255.0,0.00028077,2]
[391826908,1760892632326,-371.26,0.00028147,2]
[391826910,1760892632335,-500.0,0.00028198,5]
[391826912,1760892632344,-623.7101797,0.0002833,2]
[391826914,1760892632354,-2011.3443646,0.00028403,2]
[391826916,1760892632363,-1020.8253733,0.00028403,2]
[391826918,1760892632373,-500.0,0.00028558,2]
[391826920,1760892632383,-500.0,0.00028558,2]
[391826921,1760892632392,-255.21040445,0.00028558,2]
[391826922,1760892632402,-5000.0,0.00028559,2]
[391826923,1760892632415,-623.7101797,0.00028642,2]
[391826924,1760892632426,-202.08027241,0.00028768,2]
[391826925,1760892632436,-1087.85962774,0.00028785,2]
[391826926,1760892632446,-500.0,0.00028868,2]
[391826927,1760892632456,-500.0,0.00028868,2]
[391826928,1760892632467,-500.0,0.00028868,2]
[391826929,1760892632478,-500.0,0.00028868,2]
[391826930,1760892632488,-500.0,0.00028868,2]
[391826931,1760892632499,-500.0,0.00028868,2]
[391826932,1760892632509,-500.0,0.00028868,2]
[391826933,1760892632518,-500.0,0.00028868,2]
[391826934,1760892632528,-500.0,0.00028868,2]
[391826935,1760892632538,-500.0,0.00028868,2]
[391826936,1760892632547,-178.61645939,0.00028868,2]
[391826937,1760892632557,-945.08,0.00028868,7]
[391826938,1760892632567,-555.53,0.00028991,2]
[391826939,1760892632577,-999.99,0.00029009,2]
[391826940,1760892632587,-136.46986679,0.00029009,2]
[391826941,1760892632599,-1127.84011421,0.00029009,2]
[391826942,1760892632611,-615.91582045,0.00029009,2]
[391826943,1760892632622,-1026.2531425,0.00029009,2]
[391826944,1760892632637,-2326.17678059,0.00029009,2]
[391826945,1760892632667,-547.61427546,0.00029009,2]
[391826946,1760892632676,-150.99,0.00029009,2]
[391826947,1760892632686,-329.93,0.00029009,2]
[391826948,1760892632696,-150.99,0.00029009,2]
[391826949,1760892632706,-5491.50286173,0.00029009,10]
[391826950,1760892632718,-486.87103,0.00029009,10]
[391826951,1760892632729,-1401.20495247,0.00029009,10]
[391826952,1760892632745,-807.913,0.00029009,10]
[391826953,1760892632775,-3508.70572972,0.00029009,10]
[391826954,1760892632787,-904.61630879,0.00029009,10]
[391826955,1760892632798,-10725.0,0.00029009,10]
[391826956,1760892635976,1000.0,0.00034164,120]
[391826959,1760892637606,-1081.19611729,0.00029009,10]
[391826960,1760892637618,-2732.05388271,0.00029009,2]
[391826961,1760892637630,-297.18518212,0.00029009,2]
[391826962,1760892637641,-2918.46764344,0.00029009,2]
[391826963,1760892637664,-2738.57533887,0.00029009,2]
[391826964,1760892637718,-1052.681047,0.00029009,2]
[391826965,1760892637730,-261.02690586,0.00029009,2]
[391826966,1760892637741,-3774.36360619,0.00029009,2]
[391826967,1760892637770,-5530.0,0.00029009,2]
[391826968,1760892637782,-695.62639381,0.00029009,2]
[391826969,1760892637792,-150.0,0.00029133,2]
[391826970,1760892637802,-150.0,0.00029133,2]
[391826971,1760892637811,-150.0,0.00029133,2]
[391826972,1760892637821,-150.0,0.00029133,2]
[391826973,1760892637830,-945.08,0.00029142,7]
[391826974,1760892637839,-945.08,0.00029416,7]
[391826975,1760892637849,-151.0,0.00029676,2]
[391826976,1760892637862,-729.0136062,0.0002969,7]
[391826977,1760892637874,-216.0663938,0.0002969,7]
[391826978,1760892637884,-256.02408708,0.000297,3]
[391826979,1760892637896,-1461.09158709,0.000297,3]
[391826980,1760892637907,-401.616215,0.000297,3]
[391827020,1760892639610,-151.0,0.00029676,2]
[391827021,1760892639620,-849.0,0.000297,3]
[391827022,1760892639663,-1053.26811083,0.000297,3]
[391827023,1760892639673,-1457.2818868,0.00029736,2]
[391827024,1760892639685,-42.1981132,0.00029736,2]